[Event "Late-Titled-Tuesday-Blitz-June-18-2024"]
[Site "Chess.com"]
[Date "2024.06.18"]
[Round "11"]
[White "sammartin99"]
[Black "King_Deded4d5"]
[Result "0-1"]
[WhiteElo "2377"]
[BlackElo "2509"]
[TimeControl "180+1"]
[EndTime "16:07:17 PDT"]
[Termination "King_Deded4d5 won on time"]

1. d4 {[%clk 0:02:58.1]} 1... d5 {[%clk 0:02:59.6]} 2. c4 {[%clk 0:02:58.1]}
2... e6 {[%clk 0:02:59.9]} 3. Nc3 {[%clk 0:02:58]} 3... c6 {[%clk 0:03:00.6]} 4.
e3 {[%clk 0:02:56.2]} 4... f5 {[%clk 0:03:00]} 5. Nf3 {[%clk 0:02:55.1]} 5...
Nf6 {[%clk 0:03:00.5]} 6. g3 {[%clk 0:02:54.9]} 6... Nbd7 {[%clk 0:03:00.9]} 7.
Bg2 {[%clk 0:02:54.5]} 7... Bd6 {[%clk 0:03:01.6]} 8. O-O {[%clk 0:02:53.3]}
8... O-O {[%clk 0:03:02.2]} 9. b3 {[%clk 0:02:53.1]} 9... Ne4 {[%clk 0:03:01.9]}
10. Ne2 {[%clk 0:02:51.7]} 10... g5 {[%clk 0:02:55.1]} 11. Bb2 {[%clk
0:02:50.8]} 11... Qf6 {[%clk 0:02:55.4]} 12. Nc1 {[%clk 0:02:38.2]} 12... g4
{[%clk 0:02:52.4]} 13. Ne5 {[%clk 0:02:38]} 13... Nxe5 {[%clk 0:02:51.9]} 14.
dxe5 {[%clk 0:02:38.9]} 14... Bxe5 {[%clk 0:02:52.8]} 15. Bxe5 {[%clk
0:02:39.3]} 15... Qxe5 {[%clk 0:02:53.7]} 16. Nd3 {[%clk 0:02:39.8]} 16... Qg7
{[%clk 0:02:53.8]} 17. cxd5 {[%clk 0:02:38.2]} 17... exd5 {[%clk 0:02:53.1]} 18.
Rc1 {[%clk 0:02:31.3]} 18... Bd7 {[%clk 0:02:49.7]} 19. b4 {[%clk 0:02:26.9]}
19... h5 {[%clk 0:02:46.6]} 20. b5 {[%clk 0:02:20.9]} 20... h4 {[%clk
0:02:45.3]} 21. bxc6 {[%clk 0:02:19.9]} 21... bxc6 {[%clk 0:02:44.6]} 22. Nf4
{[%clk 0:02:14.9]} 22... Rae8 {[%clk 0:02:33.9]} 23. Qd3 {[%clk 0:02:02.9]}
23... hxg3 {[%clk 0:02:16.9]} 24. hxg3 {[%clk 0:02:00.9]} 24... Re7 {[%clk
0:02:03.2]} 25. Bxe4 {[%clk 0:01:43.5]} 25... fxe4 {[%clk 0:02:01.9]} 26. Qd4
{[%clk 0:01:33.4]} 26... Qxd4 {[%clk 0:00:37.5]} 27. exd4 {[%clk 0:01:33]} 27...
Kg7 {[%clk 0:00:38.1]} 28. Ng2 {[%clk 0:01:28.1]} 28... Rf3 {[%clk 0:00:28.2]}
29. Ne3 {[%clk 0:01:26.5]} 29... Kg6 {[%clk 0:00:23.6]} 30. Rc5 {[%clk
0:01:11.2]} 30... Rh7 {[%clk 0:00:18.8]} 31. Rb1 {[%clk 0:01:03.3]} 31... Rf8
{[%clk 0:00:15.8]} 32. Rb7 {[%clk 0:00:45.3]} 32... a6 {[%clk 0:00:11.9]} 33.
Ra7 {[%clk 0:00:38.8]} 33... Rfh8 {[%clk 0:00:12.2]} 34. Kf1 {[%clk 0:00:37]}
34... Kf6 {[%clk 0:00:11]} 35. Rxa6 {[%clk 0:00:33.2]} 35... Ke7 {[%clk
0:00:11.6]} 36. Ra7 {[%clk 0:00:31.2]} 36... Kd6 {[%clk 0:00:11]} 37. a4 {[%clk
0:00:23.9]} 37... Rh1+ {[%clk 0:00:11.3]} 38. Ke2 {[%clk 0:00:24.1]} 38... Ra1
{[%clk 0:00:11.3]} 39. Ra6 {[%clk 0:00:20]} 39... Rb8 {[%clk 0:00:08.5]} 40.
Rxd5+ {[%clk 0:00:14.6]} 40... Kc7 {[%clk 0:00:08.7]} 41. Rc5 {[%clk 0:00:12.7]}
41... Rb4 {[%clk 0:00:07.7]} 42. d5 {[%clk 0:00:11.1]} 42... Kd6 {[%clk
0:00:07.1]} 43. dxc6 {[%clk 0:00:06.3]} 43... Kxc5 {[%clk 0:00:06.4]} 44. cxd7
{[%clk 0:00:06.7]} 44... Rd4 {[%clk 0:00:05.8]} 45. Ra7 {[%clk 0:00:02.3]} 45...
Ra2+ {[%clk 0:00:04.9]} 46. Kf1 {[%clk 0:00:02.2]} 46... Rad2 {[%clk 0:00:05.7]}
0-1

[Event "Late-Titled-Tuesday-Blitz-June-18-2024"]
[Site "Chess.com"]
[Date "2024.06.18"]
[Round "11"]
[White "Supergiuly"]
[Black "safikiet"]
[Result "1-0"]
[WhiteElo "2370"]
[BlackElo "2443"]
[TimeControl "180+1"]
[EndTime "16:07:24 PDT"]
[Termination "Supergiuly won on time"]

1. g3 {[%clk 0:03:00.9]} 1... g6 {[%clk 0:02:56.4]} 2. Bg2 {[%clk 0:03:00.6]}
2... Bg7 {[%clk 0:02:56.9]} 3. Nf3 {[%clk 0:03:00]} 3... Nf6 {[%clk 0:02:56.7]}
4. O-O {[%clk 0:03:00]} 4... O-O {[%clk 0:02:56.5]} 5. d4 {[%clk 0:02:59.7]}
5... d6 {[%clk 0:02:56.6]} 6. c4 {[%clk 0:02:59]} 6... Nbd7 {[%clk 0:02:56.8]}
7. Nc3 {[%clk 0:02:57.4]} 7... e5 {[%clk 0:02:57]} 8. e3 {[%clk 0:02:56.3]} 8...
Re8 {[%clk 0:02:55]} 9. b3 {[%clk 0:02:55.5]} 9... a5 {[%clk 0:02:44.2]} 10. Bb2
{[%clk 0:02:52.3]} 10... c6 {[%clk 0:02:33.3]} 11. Qc2 {[%clk 0:02:51.1]} 11...
e4 {[%clk 0:02:30.5]} 12. Nd2 {[%clk 0:02:42.3]} 12... d5 {[%clk 0:02:23.8]} 13.
cxd5 {[%clk 0:02:36.7]} 13... cxd5 {[%clk 0:02:23.2]} 14. Nb5 {[%clk 0:02:36.7]}
14... Ra6 {[%clk 0:02:20.4]} 15. Qc7 {[%clk 0:02:29.9]} 15... Rc6 {[%clk
0:01:52.7]} 16. Qxd8 {[%clk 0:02:29.1]} 16... Rxd8 {[%clk 0:01:53.6]} 17. Ba3
{[%clk 0:02:29]} 17... Bf8 {[%clk 0:01:51]} 18. Bxf8 {[%clk 0:02:28.2]} 18...
Kxf8 {[%clk 0:01:51.9]} 19. Rac1 {[%clk 0:02:26]} 19... Nb6 {[%clk 0:01:27.2]}
20. Rxc6 {[%clk 0:02:17.4]} 20... bxc6 {[%clk 0:01:26.7]} 21. Na7 {[%clk
0:02:13.7]} 21... Bd7 {[%clk 0:01:26]} 22. Rc1 {[%clk 0:02:11.1]} 22... Ra8
{[%clk 0:01:21.9]} 23. Rxc6 {[%clk 0:01:59.3]} 23... Bxc6 {[%clk 0:01:19.6]} 24.
Nxc6 {[%clk 0:02:00.2]} 24... a4 {[%clk 0:01:18.8]} 25. b4 {[%clk 0:01:58.8]}
25... Nc4 {[%clk 0:01:07.6]} 26. Nxc4 {[%clk 0:01:42.8]} 26... dxc4 {[%clk
0:01:07]} 27. Kf1 {[%clk 0:01:43.1]} 27... a3 {[%clk 0:00:43]} 28. Ke2 {[%clk
0:01:42]} 28... Nd5 {[%clk 0:00:32]} 29. Kd2 {[%clk 0:01:37.3]} 29... Ra4 {[%clk
0:00:30.4]} 30. b5 {[%clk 0:01:18]} 30... f5 {[%clk 0:00:28.4]} 31. Ne5 {[%clk
0:00:56.2]} 31... Rb4 {[%clk 0:00:24.1]} 32. Bf1 {[%clk 0:00:56.2]} 32... Rb2+
{[%clk 0:00:18.8]} 33. Kc1 {[%clk 0:00:56.2]} 33... Nc3 {[%clk 0:00:14.6]} 34.
Bxc4 {[%clk 0:00:53.8]} 34... Nxa2+ {[%clk 0:00:14.4]} 35. Bxa2 {[%clk
0:00:52.1]} 35... Rxa2 {[%clk 0:00:14.5]} 36. b6 {[%clk 0:00:52.6]} 36... Rb2
{[%clk 0:00:14.4]} 37. Nc4 {[%clk 0:00:48.1]} 37... Rb4 {[%clk 0:00:11.3]} 38.
Nxa3 {[%clk 0:00:47.8]} 38... Rxb6 {[%clk 0:00:11.9]} 39. Kc2 {[%clk 0:00:45.5]}
39... Ke7 {[%clk 0:00:11]} 40. Nc4 {[%clk 0:00:44.8]} 40... Ra6 {[%clk
0:00:10.7]} 41. Kd2 {[%clk 0:00:41.8]} 41... Ke6 {[%clk 0:00:10.9]} 42. Ke2
{[%clk 0:00:40.5]} 42... Kd5 {[%clk 0:00:10.9]} 43. Ne5 {[%clk 0:00:40.4]} 43...
Ra2+ {[%clk 0:00:10.4]} 44. Kf1 {[%clk 0:00:40.6]} 44... Ra7 {[%clk 0:00:08.8]}
45. Kg2 {[%clk 0:00:39.7]} 45... g5 {[%clk 0:00:09]} 46. Kh3 {[%clk 0:00:37.4]}
46... Rc7 {[%clk 0:00:08]} 47. Kg2 {[%clk 0:00:35.9]} 47... f4 {[%clk
0:00:07.8]} 48. gxf4 {[%clk 0:00:30.1]} 48... gxf4 {[%clk 0:00:07.8]} 49. Ng4
{[%clk 0:00:27.6]} 49... Rg7 {[%clk 0:00:06]} 50. Kh3 {[%clk 0:00:26.2]} 50...
fxe3 {[%clk 0:00:05]} 51. fxe3 {[%clk 0:00:25.5]} 51... Ke6 {[%clk 0:00:04.3]}
52. Kh4 {[%clk 0:00:24.9]} 52... Kf5 {[%clk 0:00:03.9]} 53. Nh6+ {[%clk
0:00:21.8]} 53... Ke6 {[%clk 0:00:04]} 54. Ng4 {[%clk 0:00:21.8]} 54... Kd5
{[%clk 0:00:04]} 55. Nf6+ {[%clk 0:00:21.4]} 55... Kc4 {[%clk 0:00:03.7]} 56.
Nxe4 {[%clk 0:00:21.1]} 56... Kd3 {[%clk 0:00:04.3]} 57. Nd6 {[%clk 0:00:20.4]}
57... Rf7 {[%clk 0:00:02.3]} 58. e4 {[%clk 0:00:15.9]} 1-0

[Event "Late-Titled-Tuesday-Blitz-June-18-2024"]
[Site "Chess.com"]
[Date "2024.06.18"]
[Round "11"]
[White "Polish_fighter3000"]
[Black "Zhigalko_Sergei"]
[Result "0-1"]
[WhiteElo "3080"]
[BlackElo "2988"]
[TimeControl "180+1"]
[EndTime "16:07:26 PDT"]
[Termination "Zhigalko_Sergei won on time"]

1. e4 {[%clk 0:03:00.9]} 1... c5 {[%clk 0:03:00.1]} 2. Nf3 {[%clk 0:03:00.2]}
2... Nc6 {[%clk 0:03:00.7]} 3. Bb5 {[%clk 0:03:00.5]} 3... Nf6 {[%clk 0:03:01]}
4. Bxc6 {[%clk 0:03:00]} 4... dxc6 {[%clk 0:03:01.9]} 5. d3 {[%clk 0:03:00.1]}
5... Bg4 {[%clk 0:03:02.4]} 6. Nbd2 {[%clk 0:03:00]} 6... Qc7 {[%clk 0:03:01.5]}
7. h3 {[%clk 0:02:59]} 7... Bh5 {[%clk 0:03:01.6]} 8. a4 {[%clk 0:02:55.2]} 8...
Nd7 {[%clk 0:03:00.3]} 9. O-O {[%clk 0:02:45.2]} 9... e6 {[%clk 0:02:47.7]} 10.
a5 {[%clk 0:02:22.1]} 10... Be7 {[%clk 0:02:41.9]} 11. Nc4 {[%clk 0:02:11.6]}
11... O-O {[%clk 0:02:41.6]} 12. g4 {[%clk 0:01:57.7]} 12... Bg6 {[%clk
0:02:41.2]} 13. Qe2 {[%clk 0:01:57.5]} 13... b5 {[%clk 0:02:39.3]} 14. Ne3
{[%clk 0:01:54.3]} 14... Rae8 {[%clk 0:02:31]} 15. Ng2 {[%clk 0:01:45.1]} 15...
f6 {[%clk 0:01:48]} 16. b3 {[%clk 0:01:27]} 16... Bd6 {[%clk 0:01:28]} 17. Nfh4
{[%clk 0:01:20.4]} 17... Bf7 {[%clk 0:01:19]} 18. f4 {[%clk 0:01:15]} 18... c4
{[%clk 0:01:09.2]} 19. bxc4 {[%clk 0:01:15.9]} 19... bxc4 {[%clk 0:01:09.8]} 20.
Be3 {[%clk 0:01:16.4]} 20... Rb8 {[%clk 0:01:00.9]} 21. Qf2 {[%clk 0:00:55.8]}
21... c5 {[%clk 0:00:57]} 22. Rfc1 {[%clk 0:00:55.1]} 22... Rfd8 {[%clk
0:00:50.8]} 23. Nf3 {[%clk 0:00:53.6]} 23... e5 {[%clk 0:00:42]} 24. f5 {[%clk
0:00:49.2]} 24... cxd3 {[%clk 0:00:42.3]} 25. cxd3 {[%clk 0:00:50.1]} 25... Rb3
{[%clk 0:00:42.7]} 26. Nge1 {[%clk 0:00:49.6]} 26... c4 {[%clk 0:00:42.7]} 27.
Bxa7 {[%clk 0:00:36.5]} 27... Ra8 {[%clk 0:00:41.7]} 28. Bb6 {[%clk 0:00:31.6]}
28... Qb7 {[%clk 0:00:39.2]} 29. Be3 {[%clk 0:00:19.2]} 29... cxd3 {[%clk
0:00:38.7]} 30. Nd2 {[%clk 0:00:19.4]} 30... Ra3 {[%clk 0:00:30.3]} 31. Rxa3
{[%clk 0:00:11.1]} 31... Bxa3 {[%clk 0:00:31.2]} 32. Rc3 {[%clk 0:00:11]} 32...
Bb4 {[%clk 0:00:16.7]} 33. Rxd3 {[%clk 0:00:11.2]} 33... Rxa5 {[%clk 0:00:16.4]}
34. g5 {[%clk 0:00:11.5]} 34... Ra2 {[%clk 0:00:12.4]} 35. gxf6 {[%clk
0:00:09.3]} 35... Nxf6 {[%clk 0:00:05.3]} 36. Rd8+ {[%clk 0:00:09.1]} 36... Be8
{[%clk 0:00:05.9]} 37. Nef3 {[%clk 0:00:05.8]} 37... Ba5 {[%clk 0:00:03.1]} 38.
Rxe8+ {[%clk 0:00:02]} 38... Nxe8 {[%clk 0:00:04]} 39. Nxe5 {[%clk 0:00:02.3]}
39... Bxd2 {[%clk 0:00:02.9]} 40. Bxd2 {[%clk 0:00:01.9]} 40... Qxe4 {[%clk
0:00:03.6]} 41. Nf3 {[%clk 0:00:02]} 41... Qxf5 {[%clk 0:00:02.4]} 42. Qe3
{[%clk 0:00:02.2]} 42... Qg6+ {[%clk 0:00:01.9]} 43. Kh1 {[%clk 0:00:01.4]}
43... Nf6 {[%clk 0:00:02.6]} 44. Qb3+ {[%clk 0:00:01.2]} 44... Qf7 {[%clk
0:00:02.7]} 45. Qb8+ {[%clk 0:00:01.7]} 45... Qf8 {[%clk 0:00:02.9]} 46. Qb3+
{[%clk 0:00:01.7]} 46... Qf7 {[%clk 0:00:03.6]} 47. Qb8+ {[%clk 0:00:02]} 47...
Ne8 {[%clk 0:00:04.2]} 48. Kg2 {[%clk 0:00:02.4]} 48... h6 {[%clk 0:00:03.9]}
49. Qe5 {[%clk 0:00:02.3]} 49... Nf6 {[%clk 0:00:03.6]} 50. Qb8+ {[%clk
0:00:02.4]} 50... Kh7 {[%clk 0:00:03.7]} 51. Qe5 {[%clk 0:00:02.1]} 51... Qg6+
{[%clk 0:00:03.7]} 52. Kh1 {[%clk 0:00:01.8]} 52... Ne4 {[%clk 0:00:04.1]} 0-1

[Event "Late-Titled-Tuesday-Blitz-June-18-2024"]
[Site "Chess.com"]
[Date "2024.06.18"]
[Round "11"]
[White "Msb2"]
[Black "artin10862"]
[Result "1-0"]
[WhiteElo "3080"]
[BlackElo "2937"]
[TimeControl "180+1"]
[EndTime "16:07:35 PDT"]
[Termination "Msb2 won on time"]

1. d4 {[%clk 0:03:00.9]} 1... Nf6 {[%clk 0:02:59.2]} 2. c4 {[%clk 0:03:01.2]}
2... e6 {[%clk 0:02:59.3]} 3. Nc3 {[%clk 0:03:01.4]} 3... d5 {[%clk 0:02:59.2]}
4. cxd5 {[%clk 0:03:02.3]} 4... exd5 {[%clk 0:02:56.5]} 5. Bg5 {[%clk
0:03:02.4]} 5... c6 {[%clk 0:02:54.3]} 6. e3 {[%clk 0:03:02.8]} 6... Qb6 {[%clk
0:02:53.7]} 7. Qd2 {[%clk 0:03:00.1]} 7... Ne4 {[%clk 0:02:28.4]} 8. Nxe4 {[%clk
0:03:00]} 8... dxe4 {[%clk 0:02:29.3]} 9. Ne2 {[%clk 0:03:00.6]} 9... Bf5 {[%clk
0:02:21.1]} 10. Nc3 {[%clk 0:02:59.5]} 10... Bd6 {[%clk 0:02:18]} 11. Be2 {[%clk
0:02:53.6]} 11... Nd7 {[%clk 0:02:13.6]} 12. Bh4 {[%clk 0:02:52.8]} 12... O-O
{[%clk 0:02:12.8]} 13. Bg3 {[%clk 0:02:53]} 13... Bxg3 {[%clk 0:02:11.8]} 14.
hxg3 {[%clk 0:02:53.9]} 14... Nf6 {[%clk 0:02:12.2]} 15. Rc1 {[%clk 0:02:51.6]}
15... Rad8 {[%clk 0:02:07]} 16. Na4 {[%clk 0:02:40.9]} 16... Qc7 {[%clk
0:02:06.7]} 17. Nc5 {[%clk 0:02:35.4]} 17... g6 {[%clk 0:02:02.7]} 18. b4 {[%clk
0:02:35.3]} 18... Qe7 {[%clk 0:01:59.1]} 19. a3 {[%clk 0:02:25.3]} 19... h5
{[%clk 0:01:58.9]} 20. Qb2 {[%clk 0:02:20.7]} 20... Nd5 {[%clk 0:01:52.5]} 21.
Na4 {[%clk 0:02:17.3]} 21... Qg5 {[%clk 0:01:36]} 22. Qd2 {[%clk 0:02:07.6]}
22... Rfe8 {[%clk 0:01:33.7]} 23. Nc3 {[%clk 0:02:07.7]} 23... Bg4 {[%clk
0:01:32.9]} 24. Nxd5 {[%clk 0:02:06.6]} 24... Rxd5 {[%clk 0:01:30.4]} 25. Bc4
{[%clk 0:02:03.8]} 25... Rf5 {[%clk 0:01:30.1]} 26. Bb3 {[%clk 0:01:59.6]} 26...
a5 {[%clk 0:01:25.9]} 27. Rc5 {[%clk 0:01:46.9]} 27... axb4 {[%clk 0:01:18.1]}
28. Rxf5 {[%clk 0:01:47]} 28... Bxf5 {[%clk 0:01:08.9]} 29. Qxb4 {[%clk
0:01:47.4]} 29... Re7 {[%clk 0:01:05.5]} 30. Qd6 {[%clk 0:01:44.8]} 30... Kg7
{[%clk 0:01:02.2]} 31. O-O {[%clk 0:01:35.3]} 31... Qf6 {[%clk 0:00:53.5]} 32.
Qb8 {[%clk 0:01:29.7]} 32... Be6 {[%clk 0:00:47.6]} 33. Bxe6 {[%clk 0:01:29.2]}
33... Qxe6 {[%clk 0:00:48.5]} 34. Rb1 {[%clk 0:01:25.3]} 34... Qd7 {[%clk
0:00:36.6]} 35. a4 {[%clk 0:01:23.2]} 35... Qc7 {[%clk 0:00:27.1]} 36. Qa8
{[%clk 0:01:19.9]} 36... Rd7 {[%clk 0:00:17.3]} 37. a5 {[%clk 0:01:17.7]} 37...
Rd5 {[%clk 0:00:17.3]} 38. a6 {[%clk 0:00:55.6]} 38... bxa6 {[%clk 0:00:16]} 39.
Qxa6 {[%clk 0:00:56.5]} 39... Ra5 {[%clk 0:00:08.8]} 40. Qc4 {[%clk 0:00:56.2]}
40... Qd7 {[%clk 0:00:07.3]} 41. Rc1 {[%clk 0:00:54.8]} 41... Ra3 {[%clk
0:00:01.7]} 42. Qc5 {[%clk 0:00:53.1]} 42... Ra6 {[%clk 0:00:01.7]} 43. Qe5+
{[%clk 0:00:53.3]} 43... Kg8 {[%clk 0:00:02.2]} 44. Rb1 {[%clk 0:00:52.4]} 44...
Ra8 {[%clk 0:00:02]} 45. Qxe4 {[%clk 0:00:53]} 45... Re8 {[%clk 0:00:02.7]} 46.
Qf3 {[%clk 0:00:52.9]} 46... Re6 {[%clk 0:00:03.1]} 47. Rb8+ {[%clk 0:00:51.7]}
47... Kg7 {[%clk 0:00:03.7]} 48. Qf4 {[%clk 0:00:51.1]} 48... Qe7 {[%clk
0:00:03.7]} 49. Ra8 {[%clk 0:00:49.2]} 49... Qb4 {[%clk 0:00:02.1]} 50. Qb8
{[%clk 0:00:45.9]} 50... Qxb8 {[%clk 0:00:01.4]} 51. Rxb8 {[%clk 0:00:46.8]}
51... Rf6 {[%clk 0:00:01.3]} 52. Rc8 {[%clk 0:00:47.2]} 52... Rd6 {[%clk
0:00:01.5]} 53. Kf1 {[%clk 0:00:47.6]} 53... Kf6 {[%clk 0:00:01.9]} 54. Ke2
{[%clk 0:00:48.2]} 54... Kg5 {[%clk 0:00:02.6]} 55. f3 {[%clk 0:00:45.9]} 55...
Re6 {[%clk 0:00:01.6]} 56. e4 {[%clk 0:00:41.6]} 56... f5 {[%clk 0:00:01.8]} 57.
e5 {[%clk 0:00:42.2]} 57... f4 {[%clk 0:00:02.1]} 58. gxf4+ {[%clk 0:00:38.3]}
58... Kxf4 {[%clk 0:00:03]} 59. Kf2 {[%clk 0:00:39.2]} 59... Kg5 {[%clk
0:00:02.6]} 60. Ke3 {[%clk 0:00:36.7]} 60... Kf5 {[%clk 0:00:02.8]} 61. Rf8+
{[%clk 0:00:34.9]} 61... Kg5 {[%clk 0:00:03.3]} 62. Ke4 {[%clk 0:00:31.3]} 62...
Kh4 {[%clk 0:00:03.4]} 63. Rf6 {[%clk 0:00:31.4]} 1-0

[Event "Late-Titled-Tuesday-Blitz-June-18-2024"]
[Site "Chess.com"]
[Date "2024.06.18"]
[Round "11"]
[White "maurovargas01"]
[Black "olakenn"]
[Result "0-1"]
[WhiteElo "1930"]
[BlackElo "1873"]
[TimeControl "180+1"]
[EndTime "16:07:36 PDT"]
[Termination "olakenn won on time"]

1. e4 {[%clk 0:03:00]} 1... c6 {[%clk 0:02:59.8]} 2. Nc3 {[%clk 0:02:59.6]} 2...
d5 {[%clk 0:03:00.3]} 3. d3 {[%clk 0:03:00]} 3... dxe4 {[%clk 0:03:00.6]} 4.
Nxe4 {[%clk 0:03:00.9]} 4... Bf5 {[%clk 0:03:00.4]} 5. Ng3 {[%clk 0:02:59.7]}
5... Bg6 {[%clk 0:03:00.3]} 6. f4 {[%clk 0:02:49.8]} 6... e6 {[%clk 0:02:59.6]}
7. Nf3 {[%clk 0:02:45.2]} 7... Nd7 {[%clk 0:02:58.8]} 8. d4 {[%clk 0:02:38.6]}
8... Bd6 {[%clk 0:02:58.2]} 9. c3 {[%clk 0:02:37.3]} 9... Qc7 {[%clk 0:02:57.5]}
10. Ne5 {[%clk 0:02:36.9]} 10... Nxe5 {[%clk 0:02:53]} 11. fxe5 {[%clk
0:02:36.5]} 11... Be7 {[%clk 0:02:52.6]} 12. Bd3 {[%clk 0:02:30.5]} 12... O-O-O
{[%clk 0:02:51.9]} 13. O-O {[%clk 0:02:29.9]} 13... c5 {[%clk 0:02:49.2]} 14.
Be3 {[%clk 0:02:24.3]} 14... c4 {[%clk 0:02:46.6]} 15. Be4 {[%clk 0:02:10.6]}
15... Nh6 {[%clk 0:02:39.9]} 16. Bf3 {[%clk 0:02:06.6]} 16... Nf5 {[%clk
0:02:35.7]} 17. Bf2 {[%clk 0:02:05.2]} 17... Nxg3 {[%clk 0:02:28.6]} 18. Bxg3
{[%clk 0:02:04.4]} 18... Bd3 {[%clk 0:02:27.6]} 19. Rf2 {[%clk 0:02:02.4]} 19...
h5 {[%clk 0:02:21.7]} 20. Bf4 {[%clk 0:01:58.6]} 20... h4 {[%clk 0:02:20.4]} 21.
h3 {[%clk 0:01:58.3]} 21... g5 {[%clk 0:02:18.3]} 22. Be3 {[%clk 0:01:57.4]}
22... Bf5 {[%clk 0:02:04.6]} 23. Bg4 {[%clk 0:01:56.3]} 23... Bxg4 {[%clk
0:01:50.7]} 24. Qxg4 {[%clk 0:01:55.6]} 24... Rdf8 {[%clk 0:01:42.4]} 25. Raf1
{[%clk 0:01:54.3]} 25... Bd8 {[%clk 0:01:37.8]} 26. Bxg5 {[%clk 0:01:32.5]}
26... Rhg8 {[%clk 0:01:24.4]} 27. Qxe6+ {[%clk 0:01:16.6]} 27... fxe6 {[%clk
0:01:06.1]} 28. Rxf8 {[%clk 0:01:16.2]} 28... Rxg5 {[%clk 0:01:05.8]} 29. R1f7
{[%clk 0:01:11.7]} 29... Qc6 {[%clk 0:01:02.7]} 30. Rf2 {[%clk 0:01:02.6]} 30...
Rf5 {[%clk 0:00:51.2]} 31. R8xf5 {[%clk 0:00:55.2]} 31... exf5 {[%clk
0:00:51.2]} 32. Rxf5 {[%clk 0:00:54]} 32... Qe4 {[%clk 0:00:48.7]} 33. Rf2
{[%clk 0:00:50]} 33... Bg5 {[%clk 0:00:42.8]} 34. Kf1 {[%clk 0:00:43.9]} 34...
Qb1+ {[%clk 0:00:33.4]} 35. Ke2 {[%clk 0:00:41.1]} 35... Qxb2+ {[%clk
0:00:33.4]} 36. Kf3 {[%clk 0:00:40.9]} 36... Qxc3+ {[%clk 0:00:33.4]} 37. Kg4
{[%clk 0:00:41]} 37... Be3 {[%clk 0:00:22.1]} 38. Rf8+ {[%clk 0:00:36]} 38...
Kd7 {[%clk 0:00:22]} 39. Rf7+ {[%clk 0:00:32.1]} 39... Ke8 {[%clk 0:00:18.9]}
40. Rxb7 {[%clk 0:00:26.4]} 40... Qxd4+ {[%clk 0:00:18.7]} 41. Kf5 {[%clk
0:00:21.1]} 41... Qd3+ {[%clk 0:00:14.7]} 42. Ke6 {[%clk 0:00:19.7]} 42... Bb6
{[%clk 0:00:14]} 43. Rb8+ {[%clk 0:00:14.2]} 43... Bd8 {[%clk 0:00:14.4]} 44.
Rb7 {[%clk 0:00:12.4]} 44... Qg6+ {[%clk 0:00:13.7]} 45. Kd5 {[%clk 0:00:09.9]}
45... Qxg2+ {[%clk 0:00:13.7]} 46. Kxc4 {[%clk 0:00:06.7]} 46... Qxb7 {[%clk
0:00:14.4]} 47. a4 {[%clk 0:00:06.6]} 47... Qd7 {[%clk 0:00:14.7]} 48. a5 {[%clk
0:00:05.7]} 48... Bxa5 {[%clk 0:00:14.5]} 49. Kc5 {[%clk 0:00:03.5]} 49... Qxh3
{[%clk 0:00:14.4]} 50. e6 {[%clk 0:00:03.3]} 50... Qxe6 {[%clk 0:00:13.3]} 51.
Kb5 {[%clk 0:00:02.7]} 51... Qb6+ {[%clk 0:00:13]} 52. Kc4 {[%clk 0:00:02.6]}
52... Be1 {[%clk 0:00:12.9]} 53. Kd5 {[%clk 0:00:02.5]} 53... a5 {[%clk
0:00:13.2]} 54. Kc4 {[%clk 0:00:02.5]} 54... a4 {[%clk 0:00:13.6]} 55. Kd5
{[%clk 0:00:01.1]} 55... a3 {[%clk 0:00:13.9]} 0-1